bitfinex/quotes_SOLUSD_20251216
["timestamp","ask_amount","ask_price","bid_price","bid_amount"]
[1765850503896,19.7409981,126.64,126.59,8.66]
[1765850504072,7.89729658,126.63,126.6,5.21177609]
[1765850504693,7.89729658,126.63,126.61,0.71]
[1765850505373,27.63739734,126.64,126.61,0.71]
[1765850505975,7.89639924,126.64,126.61,0.71]
[1765850506777,13.11817533,126.64,126.59,21.06119282]
[1765850506988,13.11817533,126.64,126.6,0.71]
[1765850507797,8.61639924,126.64,126.6,0.71]
[1765850507976,13.11817533,126.64,126.6,0.71]
[1765850508375,32.85917343,126.64,126.6,8.60884887]
[1765850508597,28.35739734,126.64,126.61,0.71]
[1765850508782,7.89639924,126.64,126.61,0.71]
[1765850511299,12.39817533,126.64,126.61,0.71]
[1765850512301,7.89639924,126.64,126.61,0.71]
[1765850512700,8.61639924,126.64,126.61,0.71]
[1765850513402,7.89639924,126.64,126.61,0.71]
[1765850513771,8.61639924,126.64,126.61,0.71]
[1765850513986,32.13917343,126.64,126.59,78.45934842]
[1765850514199,32.85917343,126.64,126.6,0.71]
[1765850517601,0.72,126.63,126.6,0.71]
[1765850517898,5.22177609,126.63,126.6,0.71]
[1765850519007,8.6176465,126.62,126.6,0.71]
[1765850519308,7.8976465,126.62,126.6,0.71]
[1765850520210,8.61731806,126.63,126.6,0.71]
[1765850521510,4.50177609,126.61,126.57,9.37]
[1765850521716,4.50177609,126.59,126.55,0.91]
[1765850522014,0.72,126.58,126.55,0.2]
[1765850522209,17.54886729,126.56,126.55,0.2]
[1765850522704,27.03881221,126.56,126.55,0.2]
[1765850523092,35.69881221,126.56,126.55,0.2]
[1765850524385,8.80994492,126.55,126.53,0.2]
[1765850524588,30.8605883,126.54,126.53,0.2]
[1765850524813,31.5405883,126.54,126.53,0.2]
[1765850525619,8.80994492,126.53,126.52,0.2]
[1765850525920,21.03568497,126.53,126.52,0.2]
[1765850526305,28.93930037,126.53,126.52,0.2]
[1765850528821,7.90326404,126.53,126.52,0.2]
[1765850528994,7.90326404,126.53,126.52,0.92]
[1765850529601,7.90326404,126.53,126.52,0.2]
[1765850530108,10.78935545,126.53,126.52,0.2]
[1765850531903,11.46935545,126.53,126.52,0.2]
[1765850532111,20.27930037,126.53,126.52,0.2]
[1765850532422,21.85703612,126.5,126.49,1e-08]
[1765850532598,8.80994492,126.49,126.48,1e-08]
[1765850532798,9.48994492,126.49,126.48,1e-08]
[1765850533718,17.39570822,126.49,126.48,1e-08]
[1765850533921,20.28179963,126.49,126.48,1e-08]
[1765850534827,28.94179963,126.49,126.48,1e-08]
[1765850535501,33.79198693,126.49,126.48,1e-08]
[1765850535696,7.9057633,126.49,126.48,1e-08]
[1765850535905,28.68913321,126.49,126.48,1e-08]
[1765850536606,20.9528545,126.49,126.48,0.72000001]
[1765850536813,7.90451347,126.51,126.48,0.72000001]
[1765850537121,0.68,126.54,126.48,0.72000001]
[1765850537122,7.90263948,126.54,126.5,7.73627871]
[1765850537325,7.90263948,126.54,126.51,0.72]
[1765850537727,7.90139064,126.56,126.51,16.36040233]
[1765850538103,7.90139064,126.56,126.52,0.72]
[1765850538933,7.73627871,126.55,126.52,0.72]
[1765850540428,7.90263948,126.54,126.52,0.72]
[1765850542222,7.90218642,126.55,126.52,0.72]
[1765850542611,16.31846513,126.55,126.52,0.72]
[1765850542815,8.41627871,126.54,126.5,0.72]
[1765850543206,7.73627871,126.54,126.5,0.72]
[1765850543638,35.39350266,126.55,126.5,8.62501951]
[1765850544109,35.39350266,126.55,126.51,0.72]
[1765850545131,36.07350266,126.55,126.51,0.72]
[1765850545922,35.39350266,126.55,126.51,0.72]
[1765850546521,36.07350266,126.55,126.51,0.72]
[1765850547513,36.07350266,126.55,126.49,24.30199169]
[1765850547514,7.73627871,126.52,126.49,8.66]
[1765850548022,7.73627871,126.52,126.49,9.38]
[1765850548332,8.41627871,126.52,126.49,9.38]
[1765850548533,8.41627871,126.52,126.49,0.72]
[1765850549333,7.90451347,126.51,126.49,0.72]
[1765850550731,35.40207587,126.51,126.48,1e-08]
[1765850550939,36.08207587,126.51,126.48,0.72000001]
[1765850551116,35.40207587,126.51,126.48,0.72000001]
[1765850552639,27.66579716,126.51,126.48,0.72000001]
[1765850553723,7.90451347,126.51,126.48,0.72000001]
[1765850555536,7.90388871,126.52,126.48,0.72000001]
[1765850556719,7.90388871,126.52,126.48,8.62631009]
[1765850556921,7.90388871,126.52,126.49,0.69]
[1765850557813,11.49904339,126.52,126.49,0.69]
[1765850561167,0.71,126.51,126.48,1e-08]
[1765850561450,3.59515468,126.51,126.48,0.69000001]
[1765850562251,30.54876517,126.52,126.48,0.69000001]
[1765850562823,31.25876517,126.52,126.48,0.69000001]
[1765850564644,27.66361049,126.52,126.48,0.69000001]
[1765850564847,15.93224588,126.49,126.48,1e-08]
[1765850565447,16.64224588,126.49,126.48,1e-08]
[1765850567054,20.9528545,126.49,126.48,0.69000001]
[1765850568925,7.9057633,126.49,126.48,0.69000001]
[1765850569152,11.50091798,126.49,126.48,1e-08]
[1765850569446,10.79091798,126.49,126.48,1e-08]
[1765850571250,27.6680298,126.5,126.48,1e-08]
[1765850571552,27.6680298,126.5,126.48,0.69000001]
[1765850572064,31.26318448,126.5,126.48,1e-08]
[1765850572254,27.6680298,126.5,126.48,0.69000001]
[1765850572555,30.55318448,126.5,126.48,1e-08]
[1765850572748,31.26318448,126.5,126.48,1e-08]
[1765850574841,2.88515468,126.49,126.48,1e-08]
[1765850575825,31.26318448,126.5,126.48,1e-08]
[1765850576026,3.59515468,126.49,126.48,1e-08]
[1765850576231,2.88515468,126.49,126.48,1e-08]
[1765850577743,10.79091798,126.49,126.48,1e-08]
[1765850577938,11.50091798,126.49,126.48,1e-08]
[1765850579056,7.9057633,126.49,126.48,1e-08]
[1765850579237,10.79091798,126.49,126.48,1e-08]
[1765850579762,7.9057633,126.49,126.48,1e-08]
[1765850581660,7.9057633,126.49,126.48,0.69000001]
[1765850582164,11.50091798,126.49,126.48,1e-08]
[1765850582362,10.79091798,126.49,126.48,1e-08]
[1765850583348,19.76289147,126.5,126.48,1e-08]
[1765850583349,23.83766113,126.5,126.48,0.72000001]
[1765850583660,3.59515468,126.49,126.48,1e-08]
[1765850583872,2.88515468,126.49,126.48,1e-08]
[1765850584474,10.79091798,126.49,126.48,1e-08]
[1765850584965,7.9057633,126.49,126.48,1e-08]
[1765850585151,7.9057633,126.49,126.48,0.72000001]
[1765850587079,7.9057633,126.49,126.48,1e-08]
[1765850587664,13.12570897,126.49,126.48,1e-08]
[1765850588184,7.9057633,126.49,126.48,1e-08]
[1765850588461,7.9057633,126.49,126.48,0.72000001]
[1765850588662,7.9057633,126.49,126.48,1e-08]
[1765850592178,13.12570897,126.49,126.48,1e-08]
[1765850592361,13.1278913,126.49,126.48,1e-08]
[1765850593849,13.1278913,126.49,126.48,0.72000001]
[1765850593850,7.9057633,126.49,126.48,0.72000001]
[1765850596856,7.90538478,126.5,126.48,0.72000001]
[1765850597084,17.42071129,126.57,126.49,4.512128]
[1765850597383,17.42071129,126.57,126.52,4.512128]
[1765850597384,32.1648103,126.57,126.52,4.512128]
[1765850597550,45.2119015,126.57,126.52,4.512128]
[1765850597750,45.9219015,126.57,126.53,0.72]
[1765850598357,4.512128,126.56,126.53,0.72]
[1765850599750,45.2119015,126.57,126.53,0.72]
[1765850600182,45.9219015,126.57,126.53,0.72]
[1765850600382,20.94785757,126.57,126.53,0.72]
[1765850600554,18.39916454,126.6,126.56,4.512128]
[1765850600959,18.39916454,126.6,126.57,0.72]
[1765850601462,38.14639992,126.6,126.57,0.72]
[1765850601666,38.14639992,126.6,126.56,0.72]
[1765850601667,43.36852792,126.6,126.56,0.72]
[1765850602655,5.222128,126.59,126.56,0.72]
[1765850603677,13.1222702,126.58,126.54,0.72]
[1765850604685,7.89951812,126.59,126.55,7.9019712]
[1765850604954,7.89951812,126.59,126.55,12.4140992]
[1765850605159,7.89951812,126.59,126.56,0.72]
[1765850606183,13.12164612,126.59,126.53,7.9030536]
[1765850606365,13.12164612,126.59,126.55,0.72]
[1765850606689,32.87044144,126.59,126.55,0.72]
[1765850607684,32.87044144,126.59,126.54,0.72]
[1765850607685,7.90076637,126.57,126.54,0.72]
[1765850608074,0.71,126.56,126.53,9.4]
[1765850608385,13.12289437,126.57,126.53,9.4]
[1765850608870,13.12289437,126.57,126.54,0.72]
[1765850609185,13.12289437,126.57,126.53,9.4]
[1765850609398,4.512128,126.56,126.51,4.512128]
[1765850609561,4.512128,126.55,126.51,0.72]
[1765850609863,4.512128,126.55,126.52,0.72]
[1765850610182,5.222128,126.56,126.52,0.72]
[1765850610774,4.512128,126.55,126.52,0.72]
[1765850610971,4.512128,126.55,126.5,9.38]
[1765850610972,4.512128,126.54,126.5,9.38]
[1765850611277,4.512128,126.53,126.5,9.38]
[1765850611583,12.41601671,126.52,126.49,0.69]
[1765850612101,13.12601671,126.52,126.49,0.69]
[1765850612388,4.512128,126.51,126.48,0.66000001]
[1765850612787,0.71,126.51,126.48,1e-08]
[1765850613093,32.17573849,126.52,126.48,0.66000001]
[1765850613380,32.88573849,126.52,126.48,0.66000001]
[1765850614495,4.512128,126.51,126.48,0.66000001]
[1765850615093,28.37361049,126.52,126.48,0.66000001]
[1765850615392,7.90351887,126.53,126.48,13.07834822]
[1765850615765,8.61351887,126.53,126.49,0.66]
[1765850616197,13.12564687,126.53,126.49,0.66]
[1765850617498,32.88380699,126.53,126.49,0.66]
[1765850619093,4.512128,126.52,126.49,0.66]
[1765850619276,0.71,126.52,126.49,0.66]
[1765850619481,4.512128,126.52,126.49,0.66]
[1765850620192,32.17380699,126.53,126.49,0.66]
[1765850623003,32.88380699,126.53,126.49,0.66]
[1765850623202,4.512128,126.52,126.49,0.66]
[1765850623672,5.222128,126.52,126.49,0.66]
[1765850623996,4.512128,126.5,126.48,1e-08]
[1765850624198,4.512128,126.49,126.48,1e-08]
[1765850624387,4.512128,126.5,126.48,1e-08]
[1765850624891,7.9057633,126.49,126.48,1e-08]
[1765850627403,7.90541802,126.5,126.48,0.66000001]
[1765850628280,7.90541802,126.5,126.48,1e-08]
[1765850628498,7.90541802,126.5,126.48,0.66000001]
[1765850629810,27.66826386,126.5,126.48,0.66000001]
[1765850630011,32.18039186,126.5,126.48,1e-08]
[1765850630305,5.222128,126.49,126.48,1e-08]
[1765850630485,4.512128,126.49,126.48,1e-08]
[1765850631006,28.37826386,126.5,126.48,0.66000001]
[1765850631007,7.90541802,126.5,126.48,0.66000001]
[1765850631805,7.9045817,126.51,126.48,0.66000001]
[1765850633380,27.66453219,126.52,126.48,0.66000001]
[1765850633903,32.88666019,126.52,126.48,0.66000001]
[1765850634214,27.66453219,126.52,126.48,0.66000001]
[1765850635409,7.90388871,126.52,126.48,0.66000001]
[1765850635608,7.90388871,126.52,126.48,8.56627841]
[1765850635992,7.90388871,126.52,126.49,0.66]
[1765850636404,20.95045463,126.53,126.49,0.66]
[1765850636805,7.90336343,126.53,126.49,5.172128]
[1765850637142,7.90263948,126.54,126.5,13.192128]
[1765850637414,8.61263948,126.54,126.51,0.66]
[1765850638214,7.90263948,126.54,126.51,0.66]
[1765850638414,7.90263948,126.54,126.51,8.56441175]
[1765850638916,7.90228739,126.55,126.52,0.66]
[1765850639788,7.90148616,126.56,126.52,13.07597767]
[1765850640111,7.90148616,126.56,126.53,8.68]
[1765850640315,7.89951812,126.59,126.54,5.172128]
[1765850640515,18.39908083,126.6,126.55,4.512128]
[1765850640717,18.39908083,126.6,126.56,8.68]
[1765850640917,18.39908083,126.6,126.56,9.34]
[1765850641214,4.512128,126.58,126.54,0.66]
[1765850641420,4.512128,126.58,126.54,8.68]
[1765850641605,7.9001422,126.58,126.55,0.66]
[1765850641920,12.4122702,126.58,126.55,0.66]
[1765850642293,18.2592192,126.57,126.52,0.65]
[1765850642496,4.512128,126.56,126.52,0.65]
[1765850642692,5.212128,126.56,126.52,0.65]
[1765850643623,8.60201501,126.55,126.51,8.68]
[1765850643798,13.11414301,126.55,126.51,0.65]
[1765850644496,0.7,126.54,126.51,0.65]
[1765850644697,13.11414301,126.55,126.51,0.65]
[1765850644897,12.41414301,126.55,126.51,0.65]
[1765850645216,32.87195269,126.54,126.5,8.66]
[1765850645415,40.91537004,126.54,126.5,8.66]
[1765850645719,13.25554535,126.53,126.48,0.65000001]
[1765850646822,13.25554535,126.53,126.48,8.55631573]
[1765850647135,12.55554535,126.53,126.48,13.20554536]
[1765850647423,8.60367443,126.53,126.49,8.5557633]
[1765850647818,8.60367443,126.53,126.5,0.65]
[1765850651734,8.42687299,126.52,126.48,1e-08]
[1765850651902,36.08870754,126.53,126.49,0.65]
[1765850652104,0.7,126.52,126.49,0.65]
[1765850652329,15.63054742,126.53,126.49,8.55571037]
[1765850652502,8.60367443,126.53,126.49,8.55571037]
[1765850652824,8.60367443,126.53,126.5,0.65]
[1765850653712,16.33054742,126.53,126.5,0.65]
[1765850653909,16.33054742,126.53,126.49,0.65]
[1765850655628,7.90367443,126.53,126.49,8.55524793]
[1765850656035,7.90367443,126.53,126.5,0.65]
[1765850658742,36.08819784,126.53,126.5,0.65]
[1765850658938,36.08819784,126.53,126.48,69.80617203]
[1765850659113,36.08819784,126.53,126.5,0.65]
[1765850659843,28.36183455,126.53,126.5,0.65]
[1765850662163,7.90292712,126.54,126.5,17.23485266]
[1765850662347,7.90139064,126.56,126.52,7.72636329]
[1765850662642,7.90139064,126.56,126.53,8.68]
[1765850662813,7.90139064,126.56,126.53,9.33]
[1765850663009,7.90093256,126.57,126.54,0.65]
[1765850663635,0.7,126.57,126.54,0.65]
[1765850663847,0.7,126.56,126.52,0.65]
[1765850664151,0.7,126.56,126.52,9.33]
[1765850664456,8.42636329,126.56,126.52,9.33]
[1765850664658,7.72636329,126.55,126.52,9.33]
[1765850664859,0.7,126.55,126.52,9.33]
[1765850665041,8.42636329,126.55,126.52,9.33]
[1765850665359,8.42636329,126.55,126.52,8.68]
[1765850665566,7.90263948,126.54,126.52,8.68]
[1765850665734,8.60263948,126.54,126.52,8.68]
[1765850665928,16.32900277,126.54,126.52,8.68]
[1765850666149,36.08560147,126.54,126.51,0.65]
[1765850666639,16.32900277,126.54,126.51,0.65]
[1765850666951,8.60263948,126.54,126.51,0.65]
[1765850667453,11.48679634,126.54,126.49,16.56556358]
[1765850667751,11.48679634,126.54,126.5,0.65]
[1765850667955,3.58415686,126.53,126.49,16.56556358]
[1765850668126,3.58415686,126.53,126.49,17.21556358]
[1765850668542,3.58415686,126.53,126.49,9.31]
[1765850669130,3.58415686,126.52,126.49,8.66]
[1765850669339,2.88415686,126.51,126.48,1e-08]
[1765850669549,2.88415686,126.52,126.48,0.65000001]
[1765850669751,11.48857674,126.52,126.48,0.65000001]
[1765850670359,8.60441988,126.52,126.48,8.5561183]
[1765850670838,8.60441988,126.52,126.49,0.65]
[1765850672954,2.88415686,126.54,126.49,8.55545979]
[1765850673134,2.88415686,126.54,126.5,0.69]
[1765850673135,3.53415686,126.54,126.5,0.69]
[1765850673460,8.55263948,126.54,126.5,0.69]
[1765850673769,7.90263948,126.54,126.5,0.69]
[1765850674862,7.90211917,126.55,126.5,11.47898097]
[1765850675360,7.90154398,126.56,126.51,3.57415686]
[1765850675845,11.43570084,126.56,126.52,0.69]
[1765850676044,23.83221184,126.57,126.52,9.37]
[1765850676233,10.78512064,126.57,126.52,12.25415686]
[1765850676428,10.78512064,126.57,126.53,0.69]
[1765850676632,8.55096378,126.57,126.53,0.69]
[1765850677033,8.55096378,126.57,126.53,8.59318339]
[1765850677434,8.55096378,126.57,126.54,0.69]
[1765850678147,3.53415686,126.56,126.52,9.37]
[1765850678456,3.53415686,126.56,126.53,0.69]
[1765850678763,3.53415686,126.56,126.48,2.88415687]
[1765850678764,2.88415686,126.54,126.49,0.69]
[1765850678961,2.88415686,126.53,126.49,0.69]
[1765850679465,3.53415686,126.53,126.49,0.69]
[1765850679760,2.88415686,126.51,126.48,1e-08]
[1765850679967,2.88415686,126.5,126.48,1e-08]
[1765850680165,2.88415686,126.49,126.48,1e-08]
[1765850680468,12.34410178,126.49,126.48,1e-08]
[1765850680778,15.51555866,126.49,126.48,1e-08]
[1765850681082,12.34410178,126.49,126.48,1e-08]
[1765850681441,15.93124806,126.49,126.48,1e-08]
[1765850681647,13.6970912,126.49,126.48,1e-08]
[1765850681942,25.39119298,126.49,126.48,1e-08]
[1765850682153,33.29695628,126.49,126.48,1e-08]
[1765850683057,24.48701136,126.49,126.48,1e-08]
[1765850683558,20.9528545,126.49,126.48,1e-08]
[1765850683959,24.48701136,126.49,126.48,1e-08]
[1765850684260,23.83701136,126.49,126.48,1e-08]
[1765850684462,20.9528545,126.49,126.48,1e-08]
[1765850684662,7.90535815,126.5,126.48,0.69000001]
[1765850685060,32.49602264,126.51,126.48,0.69000001]
[1765850685252,7.90477458,126.51,126.48,0.69000001]
[1765850686339,7.90413157,126.52,126.48,11.480417]
[1765850686762,7.90413157,126.52,126.49,0.69]
[1765850686946,7.40413157,126.52,126.49,0.69]
[1765850687767,7.90341604,126.53,126.5,2.88415686]
[1765850688266,7.90341604,126.53,126.51,0.69]
[1765850688678,7.90263948,126.54,126.51,0.69]
[1765850690573,20.94933959,126.55,126.51,11.47854096]
[1765850690757,41.35437712,126.55,126.51,0.69]
[1765850691068,21.59933959,126.55,126.51,0.69]
[1765850691254,3.53415686,126.54,126.48,2.88415687]
[1765850691459,2.88415686,126.53,126.49,0.69]
[1765850691662,7.90326404,126.53,126.49,0.69]
[1765850692579,7.90326404,126.53,126.49,3.57415686]
[1765850692873,7.90326404,126.53,126.5,0.69]
[1765850693476,24.4845121,126.53,126.48,3.57415687]
[1765850693679,16.58124806,126.53,126.49,0.69]
[1765850694480,13.6970912,126.53,126.49,0.69]
[1765850695172,0.65,126.52,126.48,1e-08]
[1765850695395,0.65,126.52,126.48,0.69000001]
[1765850695690,7.90451347,126.51,126.48,0.69000001]
[1765850696186,8.55451347,126.51,126.48,0.69000001]
[1765850697384,7.90451347,126.51,126.48,3.57415687]
[1765850697894,7.90451347,126.51,126.48,0.69000001]
[1765850699187,8.55451347,126.51,126.48,0.69000001]
[1765850699974,8.55451347,126.51,126.48,1e-08]
[1765850700289,7.90413983,126.52,126.48,3.57415687]
[1765850700685,7.90413983,126.52,126.49,0.69]
[1765850701389,20.95058462,126.53,126.49,3.57415686]
[1765850701589,20.95058462,126.53,126.48,1e-08]
[1765850701590,0.65,126.52,126.48,1e-08]
[1765850701785,3.53415686,126.52,126.48,0.69000001]
[1765850701971,35.68940818,126.53,126.48,0.69000001]
[1765850702160,36.37940818,126.53,126.48,3.57415687]
[1765850702365,7.904148,126.52,126.48,3.57415687]
[1765850702564,8.594148,126.52,126.49,0.69]
[1765850702992,7.904148,126.52,126.49,0.69]
[1765850703905,31.23802664,126.52,126.48,0.69000001]
[1765850705305,3.57415686,126.51,126.48,1e-08]
[1765850705490,2.88415686,126.5,126.48,1e-08]
[1765850705813,3.1707027,126.51,126.48,0.69000001]
[1765850705969,39.91802664,126.52,126.48,0.69000001]
[1765850706775,39.91802664,126.52,126.48,11.48036911]
[1765850706776,16.584148,126.52,126.48,11.48036911]
[1765850707085,16.584148,126.52,126.48,3.57415687]
[1765850707294,0.69,126.51,126.48,0.69000001]
[1765850707699,37.03386978,126.52,126.48,0.69000001]
[1765850708000,20.95056763,126.53,126.49,2.88415686]
[1765850708199,7.90347643,126.53,126.5,0.69]
[1765850708574,0.69,126.52,126.48,9.37000001]
[1765850709007,2.88415686,126.5,126.48,1e-08]
[1765850709217,15.93124806,126.51,126.48,1e-08]
[1765850709393,18.24639439,126.51,126.48,1e-08]
[1765850710488,7.90513833,126.5,126.48,1e-08]
[1765850711495,13.10444152,126.5,126.48,1e-08]
[1765850711698,32.86728736,126.5,126.48,1e-08]
[1765850711877,5.19930319,126.49,126.48,1e-08]
[1765850712077,20.9517221,126.51,126.48,0.69000001]
[1765850712676,20.9517221,126.51,126.48,8.59638685]
[1765850712982,21.6417221,126.51,126.48,0.69000001]
[1765850713184,5.19930319,126.5,126.48,1e-08]
[1765850714686,8.5957633,126.49,126.48,1e-08]
[1765850715608,7.9057633,126.49,126.48,1e-08]
[1765850717193,30.59501141,126.49,126.48,1e-08]
[1765850717583,33.76621686,126.49,126.48,1e-08]
[1765850719118,30.59501141,126.49,126.48,1e-08]
[1765850720708,26.08570822,126.49,126.48,1e-08]
[1765850721002,30.59501141,126.49,126.48,1e-08]
[1765850721412,21.78506649,126.49,126.48,1e-08]
[1765850721916,16.5857633,126.49,126.48,1e-08]
[1765850722243,7.9057633,126.49,126.48,1e-08]
[1765850722917,12.41506649,126.49,126.48,1e-08]
[1765850724818,12.41617276,126.49,126.48,1e-08]
[1765850725621,30.59611768,126.49,126.48,1e-08]
[1765850727716,33.76757456,126.49,126.48,1e-08]
[1765850732630,25.46326396,126.49,126.48,1e-08]
[1765850733206,20.9528545,126.49,126.48,1e-08]
[1765850733435,25.46326396,126.49,126.48,1e-08]
[1765850733613,34.97320888,126.49,126.48,1e-08]
[1765850733815,21.85703612,126.47,126.46,0.2]
[1765850734036,35.04744558,126.47,126.46,0.2]
[1765850734232,35.04744558,126.47,126.44,0.2]
[1765850734233,13.0470912,126.45,126.44,0.2]
[1765850734534,26.23750066,126.45,126.44,0.2]
[1765850734734,34.14576479,126.45,126.44,0.2]
[1765850735512,43.65570971,126.45,126.44,1e-08]
[1765850735713,43.65570971,126.45,126.42,0.2]
[1765850735714,13.13689573,126.44,126.42,0.2]
[1765850735919,22.00035438,126.43,126.42,0.2]
[1765850736119,22.70035438,126.43,126.42,0.2]
[1765850736639,25.8733207,126.43,126.42,0.2]
[1765850736834,33.78283584,126.43,126.42,0.2]
[1765850737148,21.85703612,126.42,126.41,0.2]
[1765850737442,27.06744558,126.42,126.41,0.2]
[1765850738936,34.97758638,126.42,126.41,0.2]
[1765850741225,34.27758638,126.42,126.41,0.2]
[1765850741548,34.97758638,126.42,126.41,0.2]
[1765850741936,42.89143588,126.42,126.41,0.2]
[1765850743532,34.27758638,126.42,126.41,0.2]
[1765850744951,25.46764146,126.42,126.41,0.9]
[1765850746739,25.46764146,126.42,126.41,0.2]
[1765850750150,25.46764146,126.42,126.41,0.9]
[1765850751732,25.46764146,126.42,126.41,0.2]
[1765850753855,25.46764146,126.42,126.41,0.9]
[1765850754950,25.46764146,126.42,126.41,0.2]
[1765850755748,29.97805092,126.42,126.41,0.2]
[1765850756256,25.46764146,126.42,126.41,0.2]
[1765850757052,34.27758638,126.42,126.41,0.2]
[1765850757288,13.0470912,126.4,126.39,0.2]
[1765850757439,4.51040946,126.4,126.39,0.2]
[1765850757628,25.46889306,126.4,126.39,0.2]
[1765850758357,34.14889306,126.4,126.39,0.2]
[1765850758654,42.95883798,126.4,126.39,0.2]
[1765850758861,43.65883798,126.4,126.39,0.2]
[1765850759061,8.80994492,126.39,126.36,0.7]
[1765850759241,13.0470912,126.36,126.34,0.7]
[1765850759553,4.51040946,126.35,126.34,0.7]
[1765850759765,12.4249326,126.35,126.34,0.7]
[1765850760145,7.91452314,126.35,126.34,0.7]
[1765850760659,17.07257736,126.4,126.34,5.21040946]
[1765850760859,20.95910955,126.39,126.34,13.12543302]
[1765850761044,20.95910955,126.39,126.35,0.7]
[1765850762765,19.77577889,126.42,126.36,4.51040946]
[1765850762969,4.51040946,126.43,126.35,8.61438058]
[1765850763165,13.0470912,126.41,126.38,4.51040946]
[1765850763378,7.90951514,126.43,126.39,4.51040946]
[1765850763667,27.683303,126.43,126.38,4.51040946]
[1765850763851,32.19371246,126.43,126.38,4.51040946]
[1765850764051,32.19371246,126.43,126.39,0.72]
[1765850765063,7.90951514,126.43,126.39,5.23040946]
[1765850765241,12.4199246,126.43,126.39,0.72]
[1765850765447,12.4199246,126.43,126.4,0.72]
[1765850766460,7.90951514,126.43,126.4,8.6313549]
[1765850766858,7.90951514,126.43,126.41,0.72]
[1765850767361,4.51040946,126.44,126.41,0.72]
[1765850767362,7.90911824,126.44,126.41,0.72]
[1765850768187,4.51040946,126.48,126.43,4.51040946]
[1765850768350,32.18121563,126.49,126.44,7.90888959]
[1765850768549,32.18121563,126.49,126.44,8.62888959]
[1765850768755,32.18121563,126.49,126.45,0.72]
[1765850769055,12.41617276,126.49,126.45,0.72]
[1765850769264,12.41497968,126.51,126.46,4.51040946]
[1765850769480,10.78979503,126.51,126.46,2.88522481]
[1765850769769,10.78979503,126.51,126.47,0.72]
[1765850770480,10.78786429,126.54,126.48,10.79161317]
[1765850770774,23.83495549,126.54,126.49,0.72]
[1765850770950,2.88522481,126.53,126.49,0.72]
[1765850771351,0.68,126.53,126.49,0.72]
[1765850771582,2.88522481,126.52,126.49,0.72]
[1765850772080,0.2,126.55,126.51,2.88522481]
[1765850772583,8.1021065,126.55,126.52,0.72]
[1765850772875,2.88522481,126.54,126.52,0.72]
[1765850773092,2.88522481,126.53,126.5,0.72]
[1765850773250,2.88522481,126.51,126.48,0.72]
[1765850774578,7.90544245,126.5,126.48,0.72]
[1765850774792,2.88522481,126.49,126.48,0.72]
[1765850774974,2.88522481,126.49,126.46,8.68]
[1765850774975,2.88522481,126.49,126.46,0.72]
[1765850775150,2.88522481,126.48,126.46,0.72]
[1765850775351,7.73260737,126.47,126.46,0.72]
[1765850775574,7.73260737,126.47,126.45,0.72]
[1765850776861,15.63936517,126.48,126.45,0.72]
[1765850777065,15.63876975,126.49,126.45,0.72]
[1765850779489,15.63944481,126.48,126.45,0.72]
[1765850780284,7.90599053,126.49,126.45,8.62796451]
[1765850780467,15.6385979,126.49,126.45,8.62796451]
[1765850780670,15.6385979,126.49,126.46,0.72]
[1765850782386,7.73260737,126.49,126.46,0.72]
[1765850782565,20.77969857,126.52,126.47,8.68]
[1765850783086,20.77969857,126.52,126.48,0.72]
[1765850783456,20.77969857,126.52,126.47,8.68]
[1765850783457,7.73260737,126.5,126.47,8.68]
[1765850783666,7.73260737,126.5,126.47,9.4]
[1765850783854,7.73260737,126.5,126.47,8.68]
[1765850784060,7.73260737,126.5,126.48,0.72]
[1765850784484,15.6379894,126.5,126.48,0.72]
[1765850785873,20.77969857,126.52,126.48,0.72]
[1765850786076,15.83481882,126.55,126.49,7.73260737]
[1765850786283,8.10221145,126.55,126.5,8.45260737]
[1765850786493,0.2,126.55,126.52,7.73260737]
[1765850786983,0.2,126.55,126.53,0.72]
[1765850787192,0.2,126.55,126.53,8.45260737]